bitfinex/quotes_SOLUSD_20241115
["timestamp","ask_amount","ask_price","bid_price","bid_amount"]
[1731677883487,0.09367462,213.57,213.42,23.00642188]
[1731677883675,23.87055862,213.57,213.42,23.00642188]
[1731677883879,23.97055862,213.57,213.4,11.715]
[1731677884077,23.87055862,213.55,213.4,39.40742188]
[1731677884475,0.09367462,213.51,213.4,39.40742188]
[1731677884679,23.776884,213.55,213.42,23.00642188]
[1731677884680,23.776884,213.49,213.42,23.00642188]
[1731677884895,23.776884,213.49,213.41,23.00642188]
[1731677885069,0.09367462,213.48,213.4,16.401]
[1731677885274,0.09367462,213.48,194.19,23.47075085]
[1731677885275,0.09367462,213.45,213.35,11.7175]
[1731677885595,0.09367462,213.45,213.3,23.00642188]
[1731677885798,0.09367462,213.45,213.31,23.00642188]
[1731677886477,0.09367462,213.45,213.33,23.00642188]
[1731677886874,0.09367462,213.45,213.38,23.00642188]
[1731677887069,0.09367462,213.45,213.3,11.7202]
[1731677887070,0.09367462,213.45,213.33,23.00642188]
[1731677887286,23.776884,213.43,213.36,23.00642188]
[1731677887570,23.776884,213.45,213.36,23.00642188]
[1731677887769,20.0,213.44,213.33,16.4063]
[1731677887993,28.461884,213.45,213.37,23.00642188]
[1731677888591,23.776884,213.45,213.38,23.00642188]
[1731677889002,0.09367462,213.44,213.36,23.00642188]
[1731677889312,23.776884,213.42,213.36,23.00642188]
[1731677889509,23.776884,213.42,213.35,4.687]
[1731677889795,23.776884,213.42,213.37,23.00642188]
[1731677890001,23.776884,213.44,213.37,23.00642188]
[1731677890795,20.0,213.46,213.4,23.00642188]
[1731677890796,23.776884,213.46,213.4,23.00642188]
[1731677891100,23.776884,213.46,213.39,23.00642188]
[1731677891305,28.461684,213.46,213.38,23.00642188]
[1731677891603,0.09367462,213.45,213.34,34.72472188]
[1731677892181,23.776884,213.44,213.34,34.72472188]
[1731677892391,23.776884,213.42,213.34,39.41202188]
[1731677892595,23.776884,213.42,213.34,34.72472188]
[1731677893096,23.776884,213.42,213.35,23.00642188]
[1731677893304,23.776884,213.42,213.36,23.00642188]
[1731677893480,23.776884,213.43,213.36,23.00642188]
[1731677894286,23.776884,213.44,213.36,23.00642188]
[1731677894589,23.776884,213.44,213.38,23.00642188]
[1731677894994,23.776884,213.46,213.38,23.00642188]
[1731677895177,23.776884,213.46,213.37,23.00642188]
[1731677895989,28.461684,213.46,213.38,4.6864]
[1731677896188,23.776884,213.46,213.4,23.00642188]
[1731677896397,23.776884,213.47,213.4,23.00642188]
[1731677896600,4.6837,213.51,213.43,23.00642188]
[1731677896802,4.6837,213.51,213.44,23.00642188]
[1731677896998,6.5535,213.52,213.41,23.00642188]
[1731677897202,6.5535,213.52,213.43,23.00642188]
[1731677897410,11.2369,213.52,213.43,23.00642188]
[1731677897581,6.5535,213.52,213.43,23.00642188]
[1731677897986,11.2369,213.52,213.44,4.6851]
[1731677898499,0.09367462,213.51,213.41,23.00642188]
[1731677898797,23.776884,213.51,213.43,23.00642188]
[1731677899395,15.2291,213.54,213.44,23.00642188]
[1731677899614,15.2291,213.54,213.45,23.00642188]
[1731677899820,19.9121,213.54,213.44,23.00642188]
[1731677900112,4.6826,213.56,213.47,23.00642188]
[1731677900286,6.3933,213.57,213.47,23.00642188]
[1731677900486,6.3933,213.57,213.48,23.00642188]
[1731677900684,4.6819,213.59,213.49,23.00642188]
[1731677900905,4.6819,213.59,213.48,23.00642188]
[1731677901087,0.09367462,213.58,213.44,23.00642188]
[1731677901889,0.09367462,213.58,213.43,23.00642188]
[1731677901890,23.87055862,213.56,213.43,23.00642188]
[1731677902089,20.0,213.53,213.43,23.00642188]
[1731677902601,23.776884,213.56,213.45,23.00642188]
[1731677902799,23.776884,213.54,213.44,23.00642188]
[1731677902997,20.0,213.53,213.45,16.3972]
[1731677903506,20.0,213.53,213.43,23.00642188]
[1731677903507,0.09367462,213.51,213.43,4.6851]
[1731677903698,23.776884,213.5,213.43,4.6851]
[1731677904814,23.776884,213.48,213.4,16.4005]
[1731677905323,23.776884,213.46,213.36,4.6867]
[1731677905496,23.776884,213.46,213.36,27.69312188]
[1731677905698,23.776884,213.46,213.37,23.00642188]
[1731677906202,23.776884,213.46,213.36,27.69312188]
[1731677906391,28.461684,213.46,213.36,16.4039]
[1731677906595,0.09367462,213.45,213.36,16.4039]
[1731677907026,44.476084,213.46,213.36,16.4039]
[1731677907196,23.776884,213.48,213.38,23.00642188]
[1731677907519,20.0,213.48,213.36,16.4039]
[1731677907893,0.09367462,213.47,213.36,16.4039]
[1731677908496,4.77827462,213.47,213.36,39.41032188]
[1731677908695,4.77827462,213.47,213.36,16.4039]
[1731677908696,23.776884,213.46,213.36,16.4039]
[1731677909798,23.776884,213.46,213.34,23.00642188]
[1731677910022,0.09367462,213.45,213.33,23.00642188]
[1731677910218,0.09367462,213.45,213.32,39.41352188]
[1731677910219,23.776884,213.44,213.32,39.41352188]
[1731677910520,23.776884,213.44,213.33,23.00642188]
[1731677910900,23.776884,213.44,213.34,23.00642188]
[1731677911320,23.776884,213.45,213.36,23.00642188]
[1731677911621,6.4512,213.49,213.39,23.00642188]
[1731677911920,6.4512,213.49,213.41,16.4003]
[1731677912724,16.0144,213.52,213.42,23.00642188]
[1731677913121,20.6978,213.52,213.41,16.4003]
[1731677913330,0.09367462,213.51,213.41,16.4003]
[1731677914010,4.6838,213.5,213.41,16.4003]
[1731677914529,0.09367462,213.48,213.41,16.4003]
[1731677914732,20.0,213.5,213.42,23.00642188]
[1731677914904,23.776884,213.49,213.41,39.40672188]
[1731677915102,23.776884,213.49,213.41,16.4003]
[1731677915531,23.776884,213.49,213.41,39.40672188]
[1731677915733,20.0,213.5,213.42,23.00642188]
[1731677915907,20.0,213.51,213.43,23.00642188]
[1731677916110,16.0144,213.52,213.44,23.00642188]
[1731677916308,16.0144,213.52,213.39,0.1]
[1731677916309,16.0144,213.52,213.43,23.00642188]
[1731677917227,20.6979,213.52,213.41,23.00642188]
[1731677917413,20.6979,213.52,213.4,23.00642188]
[1731677917600,23.776884,213.51,213.42,23.00642188]
[1731677917806,23.776884,213.51,213.37,20.09367462]
[1731677917807,16.0144,213.52,213.44,23.00642188]
[1731677918031,16.0144,213.52,213.45,23.00642188]
[1731677918216,6.0,213.54,213.45,23.00642188]
[1731677918415,6.0,213.54,213.43,16.3987]
[1731677918416,6.0,213.54,213.46,23.00642188]
[1731677918724,16.4826,213.57,213.5,23.00642188]
[1731677919032,6.5056,213.59,213.5,23.00642188]
[1731677919330,6.5056,213.59,213.49,23.00642188]
[1731677919715,0.09367462,213.58,213.47,16.3956]
[1731677919911,0.09367462,213.56,213.47,16.3956]
[1731677920231,23.87055862,213.56,213.47,16.3956]
[1731677920409,23.776884,213.54,213.47,16.3956]
[1731677921015,23.776884,213.54,213.47,11.7112]
[1731677921327,11.1876,213.59,213.48,23.00642188]
[1731677921720,0.09367462,213.58,213.47,11.7112]
[1731677922513,4.6823,213.57,213.47,39.40202188]
[1731677922705,23.776884,213.56,213.47,39.40202188]
[1731677923016,23.776884,213.56,213.47,16.3956]
[1731677923408,20.09367462,213.56,213.44,23.00642188]
[1731677923720,23.776884,213.55,213.45,4.6847]
[1731677924111,23.776884,213.55,213.45,39.40342188]
[1731677924422,23.776884,213.55,213.45,16.397]
[1731677925007,23.776884,213.53,213.45,16.397]
[1731677925322,23.776884,213.51,213.45,11.7123]
[1731677925626,23.776884,213.51,213.41,11.7143]
[1731677926536,20.0,213.48,213.37,16.4033]
[1731677926709,23.776884,213.47,213.37,16.4033]
[1731677927031,23.776884,213.47,213.37,39.40972188]
[1731677927328,23.776884,213.45,213.37,16.4033]
[1731677927729,23.776884,213.45,213.37,11.7167]
[1731677928028,23.776884,213.45,213.37,16.4033]
[1731677928525,20.0,213.46,213.37,39.40972188]
[1731677928728,20.0,213.46,213.38,23.00642188]
[1731677928914,20.0,213.46,213.37,39.40972188]
[1731677929120,20.0,213.46,213.38,23.00642188]
[1731677929432,6.2722,213.47,213.39,23.00642188]
[1731677929806,10.7475,213.52,213.43,23.00642188]
[1731677930307,6.064,213.52,213.44,23.00642188]
[1731677930802,4.6838,213.5,213.38,4.6864]
[1731677931001,0.09367462,213.49,213.38,4.6864]
[1731677931828,4.6842,213.48,213.38,11.7161]
[1731677932027,20.0,213.46,213.38,11.7161]
[1731677932203,23.776884,213.45,213.38,11.7161]
[1731677932827,23.776884,213.45,213.36,23.4345]
[1731677933042,20.0,213.44,213.36,23.4345]
[1731677933243,23.776884,213.43,213.36,23.4345]
[1731677933910,23.776884,213.43,213.34,23.00642188]
[1731677934322,23.776884,213.43,213.33,39.41282188]
[1731677935721,28.462284,213.43,213.33,39.41282188]
[1731677937038,20.09367462,213.42,213.33,11.7189]
[1731677937246,16.67337462,213.4,213.32,15.0]
[1731677937542,23.776884,213.39,213.32,15.0]
[1731677937852,23.776884,213.39,213.32,31.4071]
[1731677938145,16.5797,213.4,213.33,23.00642188]
[1731677938322,23.776884,213.43,213.35,23.00642188]
[1731677938517,23.776884,213.43,213.37,23.00642188]
[1731677938918,23.776884,213.45,213.36,23.00642188]
[1731677939237,28.461884,213.45,213.37,4.6866]
[1731677940137,28.461884,213.45,213.36,34.72332188]
[1731677940345,83.6,213.57,213.36,34.72332188]
[1731677940346,4.6836,213.51,213.41,23.00642188]
[1731677940539,26.0198,213.52,213.41,23.00642188]
[1731677940723,26.0198,213.52,213.36,11.7169]
[1731677940917,26.0198,213.52,213.4,23.00642188]
[1731677941126,26.0198,213.52,213.42,23.00642188]
[1731677941450,21.3364,213.52,213.46,23.00642188]
[1731677941643,26.0199,213.52,213.43,23.00642188]
[1731677941832,25.79677462,213.52,213.39,23.00642188]
[1731677942148,25.79677462,213.52,213.38,23.00642188]
[1731677942317,25.79677462,213.52,213.39,23.00642188]
[1731677942318,20.0,213.51,213.39,23.00642188]
[1731677942515,20.0,213.51,213.43,23.00642188]
[1731677942714,20.0,213.51,213.41,23.00642188]
[1731677942925,21.11327462,213.52,213.42,23.00642188]
[1731677943356,25.79667462,213.52,213.42,23.00642188]
[1731677943645,20.0,213.51,213.38,23.00642188]
[1731677944049,20.8711,213.58,213.5,23.00642188]
[1731677944222,16.1889,213.58,213.54,4.6829]
[1731677944744,20.8711,213.58,213.5,4.6836]
[1731677945646,20.8711,213.58,213.48,11.7105]
[1731677945647,23.776884,213.55,213.48,11.7105]
[1731677945825,23.776884,213.55,213.48,16.3947]
[1731677946427,23.776884,213.53,213.44,4.685]
[1731677947435,0.09367462,213.52,213.44,11.7128]
[1731677947639,23.87055862,213.49,213.37,46.43982188]
[1731677947843,23.87055862,213.49,213.39,11.7153]
[1731677948050,23.776884,213.49,213.41,23.00642188]
[1731677948344,23.776884,213.53,213.45,23.00642188]
[1731677948543,6.2267,213.55,213.48,23.00642188]
[1731677948850,6.2267,213.55,213.46,4.6847]
[1731677948851,6.2267,213.55,213.47,23.00642188]
[1731677949025,6.2267,213.55,213.46,16.3964]
[1731677949224,10.9094,213.55,213.46,39.40282188]
[1731677949425,10.9094,213.55,213.47,23.00642188]
[1731677949633,6.2267,213.55,213.47,23.00642188]
[1731677949949,6.2267,213.55,213.49,23.00642188]
[1731677950125,6.2267,213.55,213.48,23.00642188]
[1731677950329,6.2267,213.55,213.46,23.00642188]
[1731677950645,6.2267,213.55,213.43,0.09367462]
[1731677950646,6.2267,213.55,213.45,23.00642188]
[1731677950946,23.776884,213.54,213.46,23.00642188]
[1731677951134,23.776884,213.54,213.45,23.00642188]
[1731677951337,23.776884,213.54,213.43,23.00642188]
[1731677951523,23.776884,213.54,213.44,23.00642188]
[1731677951886,23.776884,213.54,213.45,23.00642188]
[1731677952144,10.9095,213.55,213.44,23.00642188]
[1731677952355,10.9095,213.55,213.45,16.3972]
[1731677952356,23.776884,213.54,213.45,16.3972]
[1731677952723,6.2267,213.55,213.47,23.00642188]
[1731677952917,6.2267,213.55,213.45,16.3972]
[1731677952918,6.2267,213.55,213.45,39.40362188]
[1731677953151,23.776884,213.54,213.45,39.40362188]
[1731677953924,23.776884,213.54,213.44,23.00642188]
[1731677954256,28.459884,213.54,213.44,23.00642188]
[1731677954442,28.459884,213.54,213.45,23.00642188]
[1731677954639,6.2267,213.55,213.47,23.00642188]
[1731677954941,6.2267,213.55,213.46,23.00642188]
[1731677955140,6.2267,213.55,213.47,23.00642188]
[1731677955351,23.776884,213.54,213.43,20.0]
[1731677955558,23.776884,213.54,213.43,23.00642188]
[1731677955770,23.776884,213.54,213.44,23.00642188]
[1731677956332,23.776884,213.52,213.45,4.6849]
[1731677956731,23.776884,213.54,213.46,23.00642188]
[1731677956948,16.1889,213.58,213.49,23.00642188]
[1731677957260,16.1889,213.58,213.48,23.00642188]
[1731677957436,20.871,213.58,213.48,23.00642188]
[1731677958449,20.871,213.58,213.49,16.3941]
[1731677958657,23.776884,213.57,213.49,39.40052188]
[1731677959039,16.1889,213.58,213.49,39.40052188]
[1731677959229,6.5466,213.6,213.51,23.00642188]
[1731677959433,6.5466,213.6,213.52,23.00642188]
[1731677960335,6.5466,213.6,213.53,23.00642188]
[1731677960538,6.5466,213.6,213.52,23.00642188]
[1731677961151,6.5466,213.6,213.51,23.00642188]
[1731677961453,11.2283,213.6,213.51,16.3926]
[1731677961764,6.5466,213.6,213.51,16.3926]
[1731677961938,6.5466,213.6,213.52,23.00642188]
[1731677962357,6.5466,213.6,213.51,39.39902188]
[1731677962858,23.776884,213.59,213.51,16.3926]
[1731677963063,23.776884,213.57,213.51,11.709]
[1731677963573,23.776884,213.57,213.48,4.6841]
[1731677964246,23.776884,213.57,213.48,16.3947]
[1731677964961,23.776884,213.55,213.48,11.7106]
[1731677966167,23.776884,213.55,213.42,23.4279]
[1731677966368,23.776884,213.55,213.44,11.7126]
[1731677966955,0.09367462,213.54,213.44,11.7126]
[1731677967140,23.776884,213.53,213.44,11.7126]
[1731677967336,23.776884,213.51,213.44,11.7126]
[1731677967766,20.09367462,213.5,213.4,11.7149]
[1731677967976,23.776884,213.47,213.37,4.6865]
[1731677968267,6.2162,213.49,213.4,23.00642188]
[1731677968565,21.3372,213.54,213.42,23.00642188]
[1731677968742,28.460084,213.53,213.42,23.00642188]
[1731677969065,21.3372,213.54,213.45,23.00642188]
[1731677969269,21.3372,213.54,213.46,16.3964]
[1731677969437,21.3372,213.54,213.46,39.40282188]
[1731677969643,21.3372,213.54,213.46,16.3964]
[1731677969851,26.0203,213.54,213.46,11.7117]
[1731677970445,23.776884,213.53,213.46,11.7117]
[1731677971048,23.776884,213.53,213.46,16.3964]
[1731677971365,28.460084,213.53,213.46,11.7117]
[1731677972757,28.460084,213.53,213.44,14.48286921]
[1731677973564,28.460084,213.53,213.43,14.48286921]
[1731677973942,23.776884,213.53,213.45,14.48286921]
[1731677974164,28.459784,213.54,213.45,14.48286921]
[1731677975046,28.459784,213.54,213.44,16.3979]
[1731677975047,28.459784,213.54,213.44,30.88076921]
[1731677975246,28.459784,213.54,213.42,37.91066921]
[1731677976461,28.459784,213.54,213.42,54.31006921]
[1731677976956,28.459784,213.54,213.43,14.48286921]
[1731677977562,28.459784,213.54,213.44,16.3979]
[1731677978274,24.6816,213.6,213.48,14.48286921]
[1731677978752,24.6816,213.6,213.49,14.48286921]
[1731677979146,24.6816,213.6,213.48,14.48286921]
[1731677979346,24.6816,213.6,213.47,14.48286921]
[1731677979753,0.09367462,213.59,213.46,30.87926921]
[1731677980263,20.0,213.56,213.46,16.3964]
[1731677980444,23.776884,213.55,213.46,16.3964]
[1731677981066,23.776884,213.53,213.44,4.685]
[1731677981366,0.09367462,213.5,213.42,11.7137]
[1731677981947,0.09367462,213.5,213.39,4.6862]
[1731677982166,20.09367462,213.46,213.28,21.5363]
[1731677982371,23.776884,213.43,213.31,14.48286921]
[1731677982545,23.776884,213.43,213.32,14.48286921]
[1731677983171,20.0,213.42,213.31,14.48286921]
[1731677983465,24.6856,213.42,213.33,16.4064]
[1731677983652,23.776884,213.43,213.33,30.88926921]
[1731677984056,4.6853,213.44,213.33,30.88926921]
[1731677984057,23.776884,213.45,213.33,30.88926921]
[1731677984388,23.776884,213.45,213.35,14.48286921]
[1731677984742,23.776884,213.45,213.34,14.48286921]
[1731677985152,23.776884,213.45,213.35,16.4049]
[1731677985450,23.776884,213.45,213.35,30.88776921]
[1731677986659,23.776884,213.45,213.36,14.48286921]
[1731677986855,23.776884,213.45,213.35,14.48286921]
[1731677988070,23.776884,213.45,213.38,14.48286921]
[1731677988278,20.0,213.51,213.4,14.48286921]
[1731677988459,20.0,213.51,213.39,14.48286921]
[1731677988663,20.0,213.51,213.38,14.48286921]
[1731677988664,0.09367462,213.5,213.38,14.48286921]
[1731677989253,20.0,213.51,213.36,16.4041]
[1731677989454,27.1133,213.52,213.36,16.4041]
[1731677989455,27.1133,213.52,213.4,14.48286921]
[1731677989676,27.1133,213.52,213.42,14.48286921]
[1731677990188,22.4298,213.52,213.44,14.48286921]
[1731677990686,22.4298,213.52,213.43,30.88156921]
[1731677991065,22.4298,213.52,213.44,14.48286921]
[1731677991977,22.4298,213.52,213.45,30.88006921]
[1731677992678,22.4298,213.52,213.45,16.3972]
[1731677994770,22.4298,213.52,213.41,14.48286921]
[1731677994771,28.460484,213.51,213.41,14.48286921]
[1731677994980,28.460484,213.51,213.4,11.7146]
[1731677994981,28.460484,213.51,213.4,26.19746921]
[1731677995174,23.776884,213.49,213.4,11.7146]
[1731677995485,23.776884,213.47,213.4,11.7146]
[1731677995988,23.776884,213.47,213.38,4.6864]
[1731677996469,23.776884,213.47,213.38,30.88536921]
[1731677996788,28.461484,213.47,213.36,14.48286921]
[1731677997286,20.09367462,213.46,213.33,16.4064]
[1731677997488,0.09367462,213.44,213.33,16.4064]
[1731677997963,0.09367462,213.44,213.33,30.88926921]
[1731677998159,23.776884,213.45,213.35,14.48286921]
[1731677998466,28.461784,213.45,213.33,14.48286921]
[1731677998774,28.461784,213.45,213.35,14.48286921]
[1731677998977,23.776884,213.46,213.38,14.48286921]
[1731677999179,23.776884,213.46,213.37,14.48286921]
[1731677999678,23.776884,213.46,213.38,14.48286921]
[1731677999879,23.776884,213.46,213.33,0.09367462]
[1731677999880,23.776884,213.5,213.39,14.48286921]
[1731678000077,20.0,213.49,213.39,14.48286921]
[1731678000283,4.6833,213.53,213.42,14.48286921]
[1731678000464,4.683,213.54,213.45,30.88006921]
[1731678001760,4.6832,213.53,213.45,30.88006921]
[1731678002369,16.3122,213.52,213.46,14.48286921]
[1731678003194,11.054,213.57,213.45,30.88006921]
[1731678003362,0.09367462,213.56,213.45,11.7123]
[1731678003782,0.09367462,213.54,213.45,11.7123]
[1731678003989,0.09367462,213.54,213.42,14.48286921]
[1731678004284,0.09367462,213.54,213.4,23.4297]
[1731678004285,23.87055862,213.54,213.41,11.7144]
[1731678004484,20.09367462,213.5,213.37,16.49687462]
[1731678004693,43.87055862,213.5,213.37,16.49687462]
[1731678004897,43.87055862,213.5,213.37,30.97974383]
[1731678005065,43.87055862,213.5,213.39,14.48286921]
[1731678005265,43.87055862,213.5,213.38,14.48286921]
[1731678005476,43.87055862,213.5,213.37,30.97974383]
[1731678005783,4.684,213.49,213.39,16.4018]
[1731678005982,23.776884,213.48,213.39,16.4018]
[1731678006286,0.09367462,213.47,213.39,11.7156]
[1731678006588,23.776884,213.46,213.39,11.7156]
[1731678006774,23.776884,213.46,213.37,0.09367462]
[1731678006974,16.6202,213.43,213.37,0.09367462]
[1731678007178,23.776884,213.42,213.37,0.09367462]
[1731678007378,16.6202,213.43,213.37,4.78027462]
[1731678007582,16.6202,213.43,213.37,30.97984383]
[1731678007771,44.884284,213.48,213.39,16.4018]
[1731678008166,0.09367462,213.47,213.39,11.7156]
[1731678008563,20.09367462,213.47,213.39,11.7156]
[1731678008767,23.776884,213.46,213.39,16.4018]
[1731678008967,21.1074,213.48,213.39,16.4018]
[1731678009193,23.776884,213.47,213.39,16.4018]
[1731678009375,23.776884,213.45,213.39,11.7156]
[1731678010101,28.461884,213.45,213.39,11.7156]
[1731678011874,16.4231,213.48,213.4,14.48286921]
[1731678012071,16.6161,213.53,213.44,14.48286921]
[1731678012296,21.2993,213.53,213.44,14.48286921]
[1731678012680,22.0992,213.58,213.48,14.48286921]
[1731678013001,26.7813,213.58,213.47,14.48286921]
[1731678013590,26.7813,213.58,213.46,14.48286921]
[1731678013773,26.7813,213.58,213.47,14.48286921]
[1731678013975,23.776884,213.57,213.47,14.48286921]
[1731678014170,28.459184,213.57,213.48,16.3948]
[1731678014376,23.776884,213.57,213.49,14.48286921]
[1731678014574,26.7813,213.58,213.49,14.48286921]
[1731678015694,26.7813,213.58,213.51,4.6836]
[1731678015903,4.6818,213.6,213.51,30.87546921]
[1731678016083,48.458184,213.62,213.51,30.87546921]
[1731678016289,0.09367462,213.61,213.51,30.87546921]
[1731678016603,24.6813,213.62,213.53,14.48286921]
[1731678016895,24.6813,213.62,213.51,30.87546921]
[1731678017295,4.6813,213.62,213.51,30.87546921]
[1731678017499,4.6813,213.62,213.51,16.3926]
[1731678017696,23.776884,213.61,213.51,16.3926]
[1731678018016,23.776884,213.6,213.51,16.3926]
[1731678018198,0.09367462,213.59,213.46,11.7116]
[1731678018381,0.09367462,213.59,213.45,4.6849]
[1731678018702,20.0,213.57,213.46,14.48286921]
[1731678018876,23.776884,213.56,213.45,19.16776921]
[1731678019072,23.776884,213.56,213.46,14.48286921]
[1731678019289,23.776884,213.56,213.47,11.7112]
[1731678019496,23.776884,213.56,213.47,16.3956]
[1731678019705,23.776884,213.56,213.47,30.87846921]
[1731678019900,4.6814,213.61,213.47,30.87846921]
[1731678020203,23.776884,213.6,213.49,14.48286921]
[1731678020697,23.776884,213.6,213.48,34.48286921]
[1731678020903,23.776884,213.6,213.48,43.16367615]
[1731678021077,23.776884,213.62,213.48,43.16367615]
[1731678021276,23.776884,213.6,213.49,39.55777615]
[1731678021680,23.776884,213.6,213.49,16.3941]
[1731678021887,23.776884,213.6,213.49,39.55777615]
[1731678022399,28.458584,213.6,213.49,39.55777615]
[1731678023108,28.458584,213.6,213.49,16.3941]
[1731678023602,28.458584,213.6,213.49,39.55777615]
[1731678024113,28.458584,213.6,213.49,16.3941]
[1731678024896,23.776884,213.6,213.51,39.55627615]
[1731678025087,23.776884,213.6,213.52,23.16367615]
[1731678025289,4.6815,213.61,213.52,23.16367615]
[1731678026106,4.6815,213.61,213.53,4.6831]
[1731678026401,4.6815,213.61,213.53,16.391]
[1731678026704,20.0,213.62,213.53,16.391]
[1731678027107,24.6813,213.62,213.53,16.391]
[1731678027692,23.776884,213.61,213.53,16.391]
[1731678028084,20.0,213.62,213.52,23.16367615]
[1731678028306,15.9294,213.63,213.54,23.16367615]
[1731678028607,4.6808,213.64,213.56,23.16367615]
[1731678028788,4.6808,213.64,213.55,23.16367615]
[1731678028991,4.6808,213.64,213.54,23.16367615]
[1731678029190,4.6808,213.64,213.51,16.5814]
[1731678029602,4.6808,213.64,213.51,39.74507615]
[1731678029995,23.776884,213.63,213.51,39.74507615]
[1731678030198,23.776884,213.61,213.52,4.6834]
[1731678030401,23.776884,213.61,213.52,16.3919]
[1731678031894,7.24076065,213.67,213.59,23.16367615]
[1731678032102,15.0198,213.68,213.59,23.16367615]
[1731678032394,15.0198,213.68,213.58,23.16367615]
[1731678033089,19.6998,213.68,213.59,16.3864]
[1731678033592,20.09367462,213.67,213.57,4.6821]
[1731678034117,20.0,213.67,213.57,39.55147615]
[1731678034495,23.776884,213.66,213.57,39.55147615]
[1731678034703,20.0,213.67,213.57,39.55147615]
[1731678034923,19.6997,213.68,213.6,16.3857]
[1731678036290,23.776884,213.67,213.6,11.7041]
[1731678036787,23.776884,213.63,213.5,23.4184]
[1731678036990,23.776884,213.59,213.51,11.709]
[1731678038100,4.682,213.58,213.51,11.709]
[1731678038487,23.776884,213.57,213.49,4.684]
[1731678039693,23.776884,213.57,213.47,4.6843]
[1731678040285,23.776884,213.57,213.47,16.3955]
[1731678040606,23.776884,213.55,213.47,16.3955]
[1731678041606,23.776884,213.55,213.47,11.7112]
[1731678041818,28.55285862,213.57,213.47,11.7112]
[1731678042507,23.776884,213.57,213.47,34.87487615]
[1731678042809,15.1833,213.58,213.48,23.16367615]
[1731678043208,15.1833,213.58,213.49,23.16367615]
[1731678043717,23.776884,213.57,213.48,39.55847615]
[1731678043898,23.776884,213.57,213.48,16.3948]
[1731678044715,23.776884,213.57,213.48,11.7106]
[1731678044919,28.459384,213.57,213.48,11.7106]
[1731678045514,15.1833,213.58,213.48,34.87427615]
[1731678045732,15.1833,213.58,213.51,23.16367615]
[1731678045906,15.2427,213.63,213.5,23.16367615]
[1731678046105,0.09367462,213.62,213.5,23.16367615]
[1731678046524,15.2427,213.63,213.52,23.16367615]
[1731678046829,19.9238,213.63,213.53,39.55467615]
[1731678047516,19.9238,213.63,213.55,23.16367615]
[1731678047517,15.2427,213.63,213.55,23.16367615]
[1731678047827,15.2427,213.63,213.54,43.16367615]
[1731678048330,15.2427,213.63,213.54,20.0]
[1731678048934,15.4095,213.68,213.56,23.16367615]
[1731678049231,20.0895,213.68,213.57,23.16367615]
[1731678049821,20.0895,213.68,213.58,23.16367615]
[1731678050236,20.0895,213.68,213.59,23.16367615]
[1731678050411,15.4095,213.68,213.59,23.16367615]
[1731678050821,15.4095,213.68,213.6,16.3857]
[1731678051538,20.0894,213.68,213.6,16.3857]
[1731678052308,20.0894,213.68,213.6,11.7041]
[1731678053415,0.09367462,213.67,213.6,11.7041]
[1731678053622,23.776884,213.65,213.56,4.6824]
[1731678053930,23.776884,213.63,213.55,11.7064]
[1731678054136,23.776884,213.63,213.55,16.3891]
[1731678055633,23.776884,213.61,213.51,16.3926]
[1731678056522,23.776884,213.58,213.51,16.3926]
[1731678057612,4.6823,213.57,213.47,16.3956]
[1731678059447,23.776884,213.58,213.48,23.16367615]
[1731678059615,22.0659,213.59,213.5,23.16367615]
[1731678059929,16.0119,213.59,213.5,23.16367615]
[1731678060331,16.0119,213.59,213.51,20.0]
[1731678060932,16.0119,213.59,213.49,34.87377615]
[1731678061127,16.0119,213.59,213.5,20.0]
[1731678061727,16.0119,213.59,213.51,16.3926]
[1731678061934,4.681,213.63,213.53,23.16367615]
[1731678063022,4.681,213.63,213.54,16.3903]
[1731678063417,22.1588,213.64,213.54,30.86077498]
[1731678063838,26.8395,213.64,213.54,30.86077498]
[1731678064220,22.1588,213.64,213.55,34.47047498]
[1731678064544,4.68,213.68,213.58,14.47047498]
[1731678065135,4.68,213.68,213.59,11.7046]